Cogmind - Beta 10.2 @@@ ROGUE MODE // 2020.11.30 @ 21:56:18 // Halloween2020/ForbiddenLore Player: CrossedViper Result: Destroyed by 8R-AWN with 8R-AWN's Boregun Performance ------------- Evolutions (0) 0 Regions Visited (3) 600 Robots Destroyed (18) 90 Value Destroyed (154) 154 Prototype IDs (23) 460 Alien Tech Used (0) 0 Bonus (72) 72 TOTAL SCORE: 1376 Bonus ------- Aligned with FarCom 300 Friendly Fire -228 Cogmind --------- Core Integrity 0/250 Matter 158/300 Energy 133/250 System Corruption 3% Temperature Cool (0) Movement Treading (160) Location -10/Exiles Parts ------- > --- POWER (1) -------- Ion Engine > --- PROPULSION (2) --- Light Treads Light Treads > --- UTILITY (2) ------ Large Storage Unit > --- WEAPON (2) ------- Assault Cannon Longsword +1 > --- INVENTORY (10) --- Carbon-fiber Leg Armored Wheel Armored Wheel Armored Wheel Armored Wheel Large Storage Unit Mining Claw Mining Claw Peak State ------------ > --- POWER ------------ Ion Engine > --- PROPULSION ------- Armored Wheel Armored Wheel > --- UTILITY ---------- Large Storage Unit Cloak of Protection > --- WEAPON ----------- Shock Bomb Launcher Mining Claw > --- INVENTORY -------- Light Treads Light Treads Carbon-fiber Leg Armored Wheel Armored Wheel Large Storage Unit Assault Cannon Rocket Launcher Mining Claw Longsword +1 [Rating: 20] Favorites ----------- Power Ion Engine Engine Ion Engine Propulsion Aluminum Leg Treads Light Treads Leg Aluminum Leg Wheel Armored Wheel Utility Large Storage Unit Device Improved Sensor Array Storage Large Storage Unit Protection Light Armor Plating Weapon Maul Ballistic Gun Assault Rifle Ballistic Cannon Assault Cannon Launcher Rocket Launcher Impact Weapon Maul Slashing Weapon Mining Claw Build | -11 -10 -10 -10 ------- Run | Scr Mat Min Exi Slots Evolved . | . . . . Power . | . . . . Propulsion . | . . . . Utility . | . . . . Weapon . | . . . . Parts Attached 20 | . 8 4 8 Power 1 | . 1 . . Engine 1 | . 1 . . Core . | . . . . Reactor . | . . . . Propulsion 4 | . 2 . 2 Treads 2 | . . . 2 Leg . | . . . . Wheel 2 | . 2 . . Hover . | . . . . Flight . | . . . . Utility 6 | . 3 2 1 Device 4 | . 1 2 1 Storage 1 | . 1 . . Processor . | . . . . Hackware . | . . . . Protection 1 | . 1 . . Artifact . | . . . . Weapon 9 | . 2 2 5 Energy Gun . | . . . . Energy Cannon . | . . . . Ballistic Gun . | . . . . Ballistic Cannon 2 | . . 1 1 Launcher 2 | . . . 2 Special Weapon . | . . . . Impact Weapon 2 | . 2 . . Slashing Weapon 3 | . . 1 2 Piercing Weapon . | . . . . Special Melee Weapon . | . . . . Unidentified Prototypes . | . . . . Parts Lost 4 | . 1 . 3 Power . | . . . . Propulsion . | . . . . Utility 2 | . 1 . 1 Weapon 2 | . . . 2 Highest Loss Streak 3 | . 1 . 3 Average Slot Usage (%) 97 | . 96 100 98 Engine 14 | . 14 14 14 Leg 18 | . 26 . . Wheel 8 | . 2 28 25 Device 4 | . . 14 12 Storage 14 | . 14 14 14 Protection 7 | . 10 . . Ballistic Gun 3 | . 4 . . Ballistic Cannon 1 | . . 6 7 Impact Weapon 18 | . 23 14 . Slashing Weapon 3 | . . 6 18 Naked Turns . | . . . . Heaviest Build 33 | 12 30 30 33 Greatest Support 40 | 20 24 24 40 Greatest Overweight (x) 2 | . 2 1 1 Average Overweight (x) . | . . 1 . Largest Inventory Capacity 10 | . 10 10 10 Average Capacity 9 | . 9 10 10 Most Carried 10 | . 10 10 10 Average Carried 8 | . 7 9 9 Final Capacity 10 | 6 10 10 10 Final Carried 10 | 6 10 10 8 Class Distribution -------------------- 100% | Mutant Dominant Class ---------------- Mutant | -10/Materials Mutant | -10/Mines Mutant | -10/Exiles Resources | -11 -10 -10 -10 ----------- Run | Scr Mat Min Exi Matter Collected 390 | 200 143 47 . Remotely . | . . . . Salvage Created 442 | . 368 15 59 Parts 26 | . 24 2 . Haulers Intercepted 2 | . 2 . . Recyclers Shooed . | . . . . Parts Field Recycled . | . . . . Retrieved Matter . | . . . . Parts Self-Destructed . | . . . . Prevented . | . . . . Kills | -11 -10 -10 -10 ------- Run | Scr Mat Min Exi Combat Hostiles Destroyed 14 | . 9 . 5 Melee 4 | . 3 . 1 Guns 3 | . 3 . . AOE 4 | . . . 4 Classes Destroyed 7 | . 6 . 1 Worker 2 | . 1 1 . Builder 2 | . 2 . . Hauler 2 | . 2 . . Operator 1 | . 1 . . Watcher 2 | . 2 . . Swarmer 9 | . 9 . . Assembled 5 | . . . 5 Best Kill Streak 5 | . 5 1 5 Combat Bots Only 5 | . 5 . 5 Max Kills in Single Turn 1 | . 1 1 1 Gunslinging . | . . . . Exploded 1 | . . . 1 Melee 1 | . 1 . 1 Uniques/NPCs Destroyed . | . . . . Combat | -11 -10 -10 -10 -------- Run | Scr Mat Min Exi Damage Taken 1472 | . 449 10 1013 Core 258 | . 62 . 196 Absorbed by Shields . | . . . . Core Remaining (%) 100 | 100 . . . Volleys Fired 19 | . 11 . 8 Largest 2 | . 2 . 1 Hottest 44 | . 40 . 44 Shots Fired 30 | . 22 . 8 Gun 22 | . 22 . . Cannon 1 | . . . 1 Launcher 7 | . . . 7 Special . | . . . . Kinetic 23 | . 22 . 1 Thermal . | . . . . Explosive 3 | . . . 3 Electromagnetic 4 | . . . 4 Robot Hit Streak 7 | . 5 . 7 Robot Miss Streak 3 | . 3 . . Penetration Max . | . . . . Secondary Targets . | . . . . Shots Hit Robots 47 | . 38 2 7 Core Hits 24 | . 12 1 11 Critical Hits . | . . . . Critical Kills . | . . . . Critical Parts Destroyed . | . . . . Melee Attacks 53 | . 46 2 5 Impact 46 | . 46 . . Slashing 7 | . . 2 5 Piercing . | . . . . Sneak Attacks 8 | . 5 2 1 Combat Hostiles . | . . . . Follow-up Attacks 9 | . 9 . . Damage Inflicted 1825 | . 1145 145 535 Guns 129 | . 129 . . Cannons 20 | . . . 20 Explosions 254 | . . . 254 Melee 1422 | . 1016 145 261 Ramming . | . . . . Kinetic 149 | . 129 . 20 Thermal . | . . . . Explosive 142 | . . . 142 Electromagnetic 112 | . . . 112 Impact 1016 | . 1016 . . Slashing 406 | . . 145 261 Piercing . | . . . . Highest Corruption 3 | . 3 3 3 Average Corruption 2 | . 2 3 3 Corruption Purged . | . . . . Effects 23 | . 18 1 4 Message Errors 5 | . 5 . . Matter Fused 6 | . 3 1 2 Heat Flow Errors 3 | . 2 . 1 Energy Discharges 4 | . 4 . . Data Loss (minor) 3 | . 2 . 1 Targeting Errors 2 | . 2 . . Overload Shots . | . . . . Overflow Damage 504 | . 426 44 34 Projectiles . | . . . . Explosions 10 | . . . 10 Melee 494 | . 426 44 24 Knockbacks 5 | . 5 . . Impact 5 | . 5 . . Kinetic . | . . . . Secondary . | . . . . Self-Inflicted Damage 28 | . . . 28 Shots 2 | . . . 2 Rammed . | . . . . Targets Rammed . | . . . . Kicked . | . . . . Crushed . | . . . . Highest Temperature 244 | . 244 . 111 Average Temperature 88 | . 101 . 46 Received Heat Transfer . | . . . . Siege Activations . | . . . . Robots Corrupted . | . . . . Combat Hostiles . | . . . . Parts Fried 10 | . 10 . . Impact Corruptions 20 | . 20 . . Robots Melted . | . . . . Combat Hostiles . | . . . . Parts Melted . | . . . . Heat Transferred . | . . . . Parts Sabotaged . | . . . . Parts Stolen . | . . . . Parts Stripped . | . . . . Power Chain Reactions . | . . . . Missiles Intercepted . | . . . . Alert | -11 -10 -10 -10 ------- Run | Scr Mat Min Exi Peak Influence 182 | . 182 75 . Initial 70 | . . 70 . Average 71 | . 72 70 . Maximum Alert Level . | . . . . Low Security (%) 100 | . 100 100 . Level 1 . | . . . . Level 2 . | . . . . Level 3 . | . . . . Level 4 . | . . . . Level 5 . | . . . . High Security . | . . . . Max Security . | . . . . Squads Dispatched 1 | . 1 . . Investigation . | . . . . Extermination . | . . . . Reinforcement 1 | . 1 . . Assault . | . . . . Garrison . | . . . . Intercept . | . . . . Construction Impeded . | . . . . Haulers Reinforced . | . . . . Stealth | -11 -10 -10 -10 --------- Run | Scr Mat Min Exi Distress Signals . | . . . . Communications Jammed . | . . . . Distress Signals . | . . . . Times Spotted 22 | . 16 . 6 Peak Tracking Total 9 | . 6 . 9 Tactical Retreats 1 | . 1 . . Traps | -11 -10 -10 -10 ------- Run | Scr Mat Min Exi Traps Triggered 2 | . 2 . . Indirectly . | . . . . Trap Hack Attempts . | . . . . Triggered . | . . . . Disarmed . | . . . . Reprogrammed . | . . . . Reused . | . . . . Traps Extracted . | . . . . Installed . | . . . . Triggered . | . . . . Machines | -11 -10 -10 -10 ---------- Run | Scr Mat Min Exi Machines Disabled 3 | . . . 3 Max in Single Turn 2 | . . . 2 Machines Sabotaged . | . . . . Garrisons Compromised . | . . . . Overloaded Fab Kills . | . . . . Fab Network Shutdowns . | . . . . Hacking | -11 -10 -10 -10 --------- Run | Scr Mat Min Exi Machines Accessed 6 | . 4 1 1 Terminals 4 | . 4 . . Fabricators . | . . . . Repair Stations . | . . . . Recycling Units . | . . . . Scanalyzers . | . . . . Garrison Access . | . . . . Total Hacks 12 | . 10 1 1 Successful 8 | . 6 1 1 Failed 4 | . 4 . . Catastrophic 1 | . 1 . . Database Lockouts . | . . . . Manual 11 | . 10 . 1 Terminals 10 | . 10 . . Fabricators . | . . . . Repair Stations . | . . . . Recycling Units . | . . . . Scanalyzers . | . . . . Garrison Access . | . . . . Terminal Hacks 5 | . 3 1 1 Open Door 1 | . . 1 . Branch Access Points 1 | . 1 . . Alert Level 1 | . 1 . . Recall Reinforcements 1 | . 1 . . EX-Prototype ID Bank 1 | . . . 1 Fabricator Hacks . | . . . . Repair Station Hacks . | . . . . Recycling Unit Hacks . | . . . . Scanalyzer . | . . . . Garrison Access Hacks . | . . . . Unauthorized Hacks 3 | . 3 . . Terminals 3 | . 3 . . Botnet 3 | . 3 . . Fabricators . | . . . . Repair Stations . | . . . . Recycling Units . | . . . . Scanalyzers . | . . . . Garrison Access . | . . . . Data Cores Recovered . | . . . . Used . | . . . . Hacking Detections 3 | . 3 . . Full Trace Events . | . . . . Feedback Events . | . . . . Feedback Blocked . | . . . . Robot Schematics Acquired . | . . . . Robots Built . | . . . . Matter . | . . . . Time . | . . . . Total Robot Build Rating . | . . . . Part Schematics Acquired . | . . . . Parts Built . | . . . . Matter . | . . . . Time . | . . . . Total Part Build Rating . | . . . . Parts Repaired . | . . . . Time . | . . . . Parts Recycled . | . . . . Recycled Matter . | . . . . Retrieved Matter . | . . . . Retrieved Components . | . . . . Parts Scanalyzed . | . . . . Part Schematics Acquired . | . . . . Parts Damaged . | . . . . Bothacking | -11 -10 -10 -10 ------------ Run | Scr Mat Min Exi Used RIF Installer . | . . . . Robots Hacked . | . . . . Non-combat . | . . . . Combat . | . . . . Robot Hacks Applied . | . . . . Relay Couplers Released . | . . . . Robots Rewired . | . . . . Allies Hacked . | . . . . Hacks Repelled . | . . . . Allies | -11 -10 -10 -10 -------- Run | Scr Mat Min Exi Total Allies . | . . . . Largest Group . | . . . . Highest-Rated Group . | . . . . Highest-Rated Ally . | . . . . Total Orders . | . . . . Ally Attacks . | . . . . Total Damage . | . . . . Kills . | . . . . Allies Corrupted . | . . . . Allies Melted . | . . . . Intel | -11 -10 -10 -10 ------- Run | Scr Mat Min Exi Robot Analysis Total . | . . . . Derelict Logs Recovered 1 | . . 1 . Drone Launches . | . . . . Drone Recoveries . | . . . . Exploration | -11 -10 -10 -10 ------------- Run | Scr Mat Min Exi Turns Passed 1550 | . 1127 190 233 Spaces Moved 1005 | 1 638 173 193 Core . | . . . . Treads 1 | . . . 1 Legs 566 | 1 565 . . Wheels 438 | . 73 173 192 Hover . | . . . . Flight . | . . . . Fastest Speed 100 | 120 100 100 100 Average Speed 123 | 120 136 100 100 Slowest Speed 160 | 120 150 100 160 Overloaded Moves . | . . . . Propulsion Burnouts . | . . . . Robots Hopped . | . . . . Cave-ins Triggered . | . . . . Exploration Rate (%) 40 | 1 94 25 41 Regions Visited 3 Branch Regions 2 Pre-discovered Areas . | . . . . Known Exits Taken 1 | . 1 . . Unknown Exits Taken 2 | 1 . 1 . Scrap Searched 1 | . . 1 . Spaces Dug . | . . . . Terrain Destroyed 9 | . . . 9 Melee . | . . . . Projectile . | . . . . AOE 9 | . . . 9 Terrain Rammed . | . . . . Walls Destroyed . | . . . . Machines Disabled . | . . . . Actions | -11 -10 -10 -10 --------- Run | Scr Mat Min Exi Total 1207 | . 803 187 217 Wait 96 | . 94 2 . Move 1002 | . 637 172 193 Hop . | . . . . Pick Up 12 | . 9 2 1 Fast Attach 10 | . 6 3 1 Attach 3 | . . 1 2 Detach . | . . . . Swap 7 | . 2 . 5 Drop 17 | . 10 5 2 Fire 19 | . 11 . 8 Melee 41 | . 34 2 5 Ram . | . . . . Kick . | . . . . Crush . | . . . . Escape Stasis . | . . . . Rewire . | . . . . Trap . | . . . . Miscellaneous . | . . . . Route ------- -11/Scrapyard -10/Materials (discovered 5 exits: [*Mat x3] / *Min x2) -10/Mines -10/Exiles (discovered 1 exit: [*Min]) History --------- Turn | Location | Event 1 | -11/Scrapyard | Discovered new exit (range 0) 1 | -11/Scrapyard | Entered Materials 138 | -10/Materials | Discovered new exit (range 13) 253 | -10/Materials | Discovered new exit (range 6) 263 | -10/Materials | Discovered new exit (range 14) 302 | -10/Materials | Build established: Mutant 457 | -10/Materials | Discovered new exit (range 12) 463 | -10/Materials | Identified exit to Mines 801 | -10/Materials | Discovered new exit (range 8) 1128 | -10/Materials | Entered Mines 1136 | -10/Mines | Deemed a non-threat by the Exiles lab entrance 1137 | -10/Mines | Discovered new exit (range 5) 1210 | -10/Mines | Met a Derelict who couldn't figure out how to use a Trap Extractor 1253 | -10/Mines | Learned Materials stockpile data 1318 | -10/Mines | Entered Exiles 1333 | -10/Exiles | Discovered new exit (range 15) 1345 | -10/Exiles | Met 8R-AWN 1360 | -10/Exiles | Met EX-HEX 1389 | -10/Exiles | Met EX-BIN 1401 | -10/Exiles | Aligned with FarCom system 1402 | -10/Exiles | Given EX-Vault access code 1427 | -10/Exiles | Opened EX-Vault 1438 | -10/Exiles | Found Longsword +1 1444 | -10/Exiles | Found Cloak of Protection 1465 | -10/Exiles | Warned to stay clear of 0b10 Research branches 1516 | -10/Exiles | Attacked by the Exiles 1525 | -10/Exiles | Core integrity fell below 50% 1538 | -10/Exiles | Core integrity fell below 20% 1551 | -10/Exiles | Destroyed by 8R-AWN with 8R-AWN's Boregun Last Messages --------------- 01537_ Penetrated by HV Slug. 01537_ HV Slug penetrates Wall. 01537_ Penetrated by HV Slug. 01537_ HV Slug penetrates Earth. 01539_ Penetrated by HV Slug. 01539_ HV Slug penetrates Earth. 01539_ Penetrated by HV Slug. 01539_ HV Slug penetrates Earth. 01539_ Destroyed Asb. Hover Unit. 01540_ Rocket Launcher destroyed. 01541_ as-18566 destroyed. 01542_ Penetrated by HV Slug. 01542_ HV Slug penetrates Earth. 01542_ Penetrated by HV Slug. 01542_ HV Slug penetrates Earth. 01544_ Penetrated by HV Slug. 01544_ HV Slug penetrates Earth. 01544_ Penetrated by HV Slug. 01544_ HV Slug penetrates Earth. 01546_ Penetrated by HV Slug. Map ----- +----------------------------------------------------+ | """#?????????????????????????????????????????????? | | """#?????????????????????????????????????????????? | | """#?????????????????????????????????????????????? | | """#?????????????????????????????????????????????? | | """#?????????????????????????????????????????????? | | """#?????????????????????????????????????????????? | | """#?????????????????????????????????????????????? | | """#?????????????????????????????????????????????? | | """#?????????????????????????????????????????????? | | """"?????????????????????????????????????????????? | | """#?????????????????????????????????????????????? | | """"?????????????????????????????????????????????? | | #?????????????????????????????????????????????? | | """#?????????????????????????????????????????????? | | ####?????????????????????????????????????????????? | | ?????????????????????????????????????????????????? | | ?????????????????????????????????????????????????? | | ?????????????????????????????????????????????? < | | ##########???????????????????????????????????? | | """""""""##??????????????????????????????????? | | " """ """"##?????????????????????????????????# # | | "" " #???????????????????????????????## # | | " """#???????????????????????????????# | | " "#???????????#####???????????????# | | " "##?????????## g #??????????????## | | ""###???????# @ #?????????????## #? | | """#??????## ##????????????# #? | | "#????### % ###????????### #?? | | ##???# ########## #?? | | ##?## #""""## #??? | | ### * ##?? | | a% # * #?? | | ##;# ##? | | " ##; " ""#### ## | | """###;######??#### * | | ####?? ???????????##### | | ?????? ???????????????### | | " ???????? ?????????????????### | | """ ""#????????? ???????????????????### | | ""#" "##????????? ????????????????????#" | | ""?##"""""""##?????????? ????????????????????#### | | ?????#########???????????#???????????????????????# | | ?????????????????????????????????????????????????# | | ?????????????????????????????????????????????????? | | ?????????????????????????????????????????????????? | | ?????????????????????????????????????????????????? | | ?????????????????????????????????????????????????? | | ?????????????????????????????????????????????????? | | ?????????????????????????????????????????????????? | | ?????????????????????????????????????????????????? | +----------------------------------------------------+ Best States ------------- Heat Dissipation 25 Energy Generation 10 Energy Capacity 250 Matter Stores 300 Matter Capacity 300 Sight Range 16 Robot Scan Range 13 Terrain Scan Density 10 Armor Coverage 150 Evasion (%) 40 Recoil Reduction 2 Item Schematics ----------------- None Robot Schematics ------------------ None Fabricated ------------ Nothing Alien Tech Used ----------------- None Achievements -------------- None Challenges ------------ None Game ------ Seed LargeGravitonPerforator Manual? 0 Play Time 00:11:13 Cumulative 116.8 hours Start 2020.11.30 @ 21:44:59 End 2020.11.30 @ 21:56:18 Sessions 1 Manual Loads 0 Difficulty Rogue Special Mode Halloween2020/ForbiddenLore Game No. 127 Rogue 120 Adventurer 0 Explorer 7 Win Type - Total 1 Types 0/0/1/0/0/0/0/0/0 Lore% 55 Gallery% 83 Achievement% 64 Wizard Run 0 Options --------- ASCII 0 Keyboard 0 Movement Numpad Keybinds 0 Fullscreen 1 Font 18/X11 Map View 76x50 Tactical HUD 1 Map Filters NONE Filters NONE Steam 1 RUN: 3be772f1-aff8-495f-9013-27a25fa4fe0e